bitfinex/quotes_SOLUSD_20260217
["timestamp","ask_amount","ask_price","bid_price","bid_amount"]
[1771340223360,0.48541532,83.549,83.511,20.96]
[1771340223579,0.48541532,83.561,83.52,7.38366701]
[1771340223765,0.48541532,83.549,83.521,20.96]
[1771340223955,7.38366701,83.54,83.521,20.96]
[1771340224164,11.96943003,83.547,83.521,20.96]
[1771340224165,0.48541532,83.547,83.521,20.96]
[1771340224380,0.48541532,83.539,83.51,20.96]
[1771340224575,7.38366701,83.53,83.51,20.96]
[1771340224755,0.48541532,83.529,83.5,20.96]
[1771340224956,0.48541532,83.529,83.5,28.34366701]
[1771340225167,7.38366701,83.6,83.5,28.34366701]
[1771340225168,7.38366701,83.56,83.511,0.46756255]
[1771340225392,0.48541532,83.559,83.52,7.38366701]
[1771340225585,0.48541532,83.558,83.52,7.38366701]
[1771340225882,0.2,83.59,83.551,0.46756255]
[1771340226062,11.9632966,83.589,83.552,11.9685944]
[1771340226261,7.38366701,83.58,83.553,20.96]
[1771340226473,0.48541532,83.589,83.56,7.38366701]
[1771340226675,0.2,83.59,83.57,7.38366701]
[1771340227075,7.38366701,83.61,83.571,0.46756255]
[1771340227270,7.38366701,83.61,83.573,0.46756255]
[1771340227983,7.38366701,83.6,83.563,0.46756255]
[1771340228172,11.95585896,83.641,83.591,0.46756255]
[1771340228370,7.38366701,83.6,83.565,0.46756255]
[1771340228678,7.38366701,83.61,83.571,0.46756255]
[1771340228864,7.38366701,83.64,83.601,0.46756255]
[1771340229185,7.38366701,83.62,83.59,7.85122956]
[1771340229372,7.38366701,83.63,83.591,0.46756255]
[1771340229990,7.38366701,83.61,83.586,20.94]
[1771340230195,7.38366701,83.62,83.59,7.38366701]
[1771340230498,7.38366701,83.6,83.574,20.92]
[1771340230664,7.38366701,83.6,83.566,12.43401954]
[1771340231277,0.48541532,83.607,83.554,0.46756255]
[1771340231484,7.38366701,83.59,83.554,0.46756255]
[1771340231970,7.38366701,83.59,83.562,11.9671621]
[1771340232176,7.86908233,83.6,83.562,11.9671621]
[1771340232585,11.9604671,83.609,83.563,0.46756255]
[1771340232766,11.9604671,83.609,83.571,0.46756255]
[1771340232969,7.38366701,83.61,83.571,0.46756255]
[1771340233163,7.38366701,83.6,83.562,11.9671621]
[1771340233363,41.85955042,83.613,83.559,11.96759176]
[1771340233364,7.38366701,83.59,83.559,11.96759176]
[1771340233586,0.48541532,83.599,83.56,7.38366701]
[1771340233884,7.38366701,83.59,83.559,11.96759176]
[1771340234091,11.96200866,83.598,83.561,0.46756255]
[1771340234585,7.38366701,83.59,83.561,0.46756255]
[1771340234787,41.8610214,83.61,83.561,0.46756255]
[1771340234788,7.38366701,83.6,83.561,0.46756255]
[1771340235419,7.38366701,83.58,83.55,0.45413838]
[1771340235596,7.38366701,83.58,83.551,0.45413838]
[1771340235785,0.45256092,83.599,83.551,0.45413838]
[1771340235981,7.38366701,83.58,83.551,0.45413838]
[1771340236185,7.38366701,83.57,83.535,0.45413838]
[1771340236384,11.96341677,83.589,83.551,0.45413838]
[1771340236570,7.38366701,83.59,83.56,7.38366701]
[1771340236893,7.38366701,83.6,83.571,0.45413838]
[1771340237078,19.34252852,83.62,83.581,0.45413838]
[1771340237280,7.38366701,83.6,83.57,0.45413838]
[1771340237469,7.38366701,83.6,83.57,7.83780539]
[1771340237870,7.38366701,83.61,83.571,0.45413838]
[1771340238073,7.38366701,83.62,83.592,11.96286726]
[1771340238278,11.95774867,83.628,83.593,0.45413838]
[1771340238478,7.38366701,83.62,83.593,0.45413838]
[1771340238773,7.38366701,83.62,83.592,11.96286726]
[1771340239290,11.95628781,83.638,83.601,0.45413838]
[1771340239473,7.38366701,83.61,83.576,0.45413838]
[1771340239672,7.38366701,83.6,83.565,0.45413838]
[1771340240080,13.22,83.628,83.56,7.38366701]
[1771340240081,7.38366701,83.59,83.56,7.38366701]
[1771340240282,7.38366701,83.59,83.554,20.9]
[1771340240574,7.38366701,83.58,83.551,0.45413838]
[1771340240791,7.38366701,83.59,83.553,0.45413838]
[1771340240995,7.38366701,83.58,83.541,11.97017033]
[1771340241185,7.38366701,83.57,83.541,11.97017033]
[1771340241495,0.45256092,83.57,83.53,7.38366701]
[1771340241803,7.38366701,83.6,83.518,11.9733344]
[1771340241804,0.45256092,83.559,83.518,11.9733344]
[1771340241971,0.45256092,83.559,83.52,7.38366701]
[1771340242175,11.96746846,83.56,83.522,0.45413838]
[1771340242934,19.35113547,83.56,83.522,0.45413838]
[1771340244194,12.42002938,83.56,83.522,0.45413838]
[1771340244397,19.80369639,83.56,83.522,0.45413838]
[1771340244792,49.72231773,83.56,83.523,11.97275002]
[1771340244979,49.72231773,83.56,83.522,0.45413838]
[1771340245299,7.38366701,83.54,83.496,0.45413838]
[1771340245504,7.83622793,83.54,83.501,0.45413838]
[1771340245698,7.83622793,83.54,83.475,101.82689427]
[1771340245699,0.45256092,83.539,83.49,7.83780539]
[1771340246008,41.8860898,83.56,83.476,0.45413838]
[1771340246009,0.45256092,83.519,83.476,0.45413838]
[1771340246182,7.38366701,83.51,83.476,0.45413838]
[1771340246503,0.45256092,83.519,83.478,0.45413838]
[1771340246714,7.38366701,83.5,83.466,11.98092636]
[1771340246883,11.97346679,83.518,83.471,0.45413838]
[1771340247404,0.45256092,83.499,83.461,11.98164412]
[1771340247608,0.45256092,83.511,83.462,0.45413838]
[1771340247800,0.45256092,83.499,83.461,11.98164412]
[1771340248111,7.83622793,83.51,83.462,0.45413838]
[1771340248288,0.45256092,83.509,83.462,0.45413838]
[1771340248489,7.38366701,83.5,83.462,12.4355981]
[1771340248685,0.45256092,83.507,83.463,0.45413838]
[1771340248885,0.45256092,83.507,83.47,7.38366701]
[1771340249087,0.45256092,83.507,83.47,7.83780539]
[1771340249604,11.9749006,83.508,83.46,0.2]
[1771340249605,0.45256092,83.499,83.46,0.2]
[1771340249806,7.38366701,83.48,83.46,0.2]
[1771340250309,0.45256092,83.469,83.416,0.45413838]
[1771340250487,7.38366701,83.46,83.421,11.98738926]
[1771340250687,0.45256092,83.459,83.416,0.45413838]
[1771340250883,0.45256092,83.459,83.42,11.98748996]
[1771340251195,0.45256092,83.459,83.42,19.37115697]
[1771340251391,0.45256092,83.459,83.421,0.45413838]
[1771340251899,7.38366701,83.45,83.411,11.98873997]
[1771340252083,0.45256092,83.449,83.406,11.98951447]
[1771340252482,11.98351068,83.448,83.406,11.98951447]
[1771340252693,11.98278908,83.454,83.411,0.45413838]
[1771340252892,7.38366701,83.45,83.411,0.45413838]
[1771340253105,7.83622793,83.45,83.411,0.45413838]
[1771340253409,0.45256092,83.419,83.371,0.45413838]
[1771340253795,7.38366701,83.39,83.347,0.45413838]
[1771340253995,0.45256092,83.399,83.35,7.83780539]
[1771340254609,7.38366701,83.39,83.35,7.83780539]
[1771340254807,4.61729252,83.425,83.33,0.1]
[1771340254808,7.38366701,83.37,83.335,0.45413838]
[1771340255115,0.45256092,83.389,83.361,0.45413838]
[1771340255422,0.45256092,83.389,83.371,0.45413838]
[1771340255808,0.45256092,83.389,83.36,7.38366701]
[1771340256107,0.45256092,83.389,83.36,7.83780539]
[1771340256304,7.38366701,83.4,83.361,0.45413838]
[1771340256603,7.38366701,83.39,83.361,0.45413838]
[1771340256806,11.99198935,83.389,83.355,11.99680716]
[1771340256999,7.38366701,83.38,83.351,0.45413838]
[1771340257207,7.38366701,83.39,83.361,0.45413838]
[1771340257385,7.38366701,83.37,83.349,11.99769555]
[1771340257589,7.38366701,83.37,83.335,0.45413838]
[1771340257810,7.38366701,83.37,83.33,7.48366701]
[1771340257811,7.38366701,83.36,83.337,0.45413838]
[1771340257998,7.38366701,83.37,83.337,0.45413838]
[1771340258400,7.38366701,83.37,83.341,0.45413838]
[1771340258991,7.38366701,83.36,83.341,0.45413838]
[1771340259195,7.38366701,83.37,83.341,0.45413838]
[1771340259398,0.45256092,83.383,83.342,0.45413838]
[1771340259602,7.38366701,83.37,83.342,0.45413838]
[1771340260005,43.19748642,83.396,83.36,7.38366701]
[1771340260006,7.38366701,83.39,83.36,7.38366701]
[1771340260207,7.38366701,83.4,83.361,0.45413838]
[1771340260886,7.38366701,83.4,83.37,7.38366701]
[1771340261205,7.38366701,83.4,83.372,0.45413838]
[1771340261601,7.38366701,83.41,83.372,0.45413838]
[1771340261808,7.38366701,83.4,83.372,0.45413838]
[1771340262110,7.38366701,83.41,83.372,0.45413838]
[1771340262307,7.38366701,83.41,83.381,0.45413838]
[1771340262809,11.98832968,83.415,83.381,0.45413838]
[1771340263110,11.98767666,83.419,83.381,0.45413838]
[1771340263311,11.98767666,83.419,83.382,11.99299609]
[1771340263517,11.98767666,83.419,83.383,0.45413838]
[1771340263806,0.45256092,83.418,83.377,12.44771931]
[1771340264312,11.98767666,83.419,83.381,0.466817]
[1771340264793,7.38366701,83.41,83.367,0.466817]
[1771340264995,7.38366701,83.41,83.37,7.38366701]
[1771340265204,41.96189859,83.409,83.37,0.466817]
[1771340265405,7.38366701,83.42,83.381,0.466817]
[1771340265692,13.22,83.436,83.37,11.9946707]
[1771340265693,7.38366701,83.44,83.401,0.466817]
[1771340265899,0.45607179,83.439,83.401,0.466817]
[1771340266116,0.45607179,83.439,83.391,0.466817]
[1771340266501,0.45607179,83.439,83.39,7.38366701]
[1771340266502,7.38366701,83.42,83.381,0.466817]
[1771340267018,0.45607179,83.409,83.368,0.466817]
[1771340267193,0.45607179,83.407,83.369,11.99486619]
[1771340267393,0.45607179,83.407,83.368,0.466817]
[1771340267589,0.45607179,83.407,83.369,11.99486619]
[1771340268796,11.98860993,83.413,83.371,0.466817]
[1771340269293,11.98796408,83.417,83.381,0.466817]
[1771340270089,0.45607179,83.416,83.373,0.466817]
[1771340270294,11.98743317,83.421,83.381,0.466817]
[1771340270517,13.22,83.422,83.39,0.466817]
[1771340270809,7.38366701,83.42,83.39,0.466817]
[1771340271212,11.98782037,83.418,83.381,11.99313992]
[1771340271413,11.98782037,83.418,83.382,0.466817]
[1771340271811,7.38366701,83.4,83.351,0.466817]
[1771340271996,7.38366701,83.39,83.351,0.466817]
[1771340272312,7.38366701,83.4,83.361,0.46677316]
[1771340273215,7.38366701,83.39,83.362,11.99587341]
[1771340273397,7.38366701,83.4,83.363,0.46677316]
[1771340274122,7.38366701,83.38,83.353,11.99716866]
[1771340274412,7.38366701,83.37,83.337,0.46677316]
[1771340274596,7.38366701,83.4,83.337,0.46677316]
[1771340274597,7.38366701,83.38,83.341,0.46677316]
[1771340275406,11.9934276,83.379,83.343,0.46677316]
[1771340275894,7.38366701,83.38,83.343,0.46677316]
[1771340276095,7.38366701,83.39,83.351,0.46677316]
[1771340276427,11.99198935,83.389,83.351,0.46677316]
[1771340276598,7.38366701,83.39,83.351,0.46677316]
[1771340276999,29.97172605,83.412,83.347,20.88]
[1771340277000,7.38366701,83.41,83.371,0.46677316]
[1771340277208,7.38366701,83.4,83.371,0.46677316]
[1771340277513,11.99055144,83.399,83.362,0.46677316]
[1771340277717,7.38366701,83.39,83.358,20.88]
[1771340278009,0.49368344,83.39,83.352,12.46408576]
[1771340278215,7.90785022,83.39,83.352,12.46408576]
[1771340278411,7.90785022,83.39,83.352,42.45736726]
[1771340278711,7.41416678,83.39,83.353,0.46677316]
[1771340278915,41.96693005,83.399,83.353,0.46677316]
[1771340279108,7.41416678,83.39,83.353,0.46677316]
[1771340279317,7.41416678,83.4,83.363,0.46677316]
[1771340279504,7.41416678,83.42,83.381,0.46677316]
[1771340280021,11.98623979,83.429,83.391,0.46677316]
[1771340280437,7.41416678,83.42,83.391,0.46677316]
[1771340280616,7.41416678,83.42,83.37,7.41416678]
[1771340280617,7.41416678,83.41,83.379,0.46677316]
[1771340280817,41.95183928,83.429,83.362,41.98555695]
[1771340280818,7.41416678,83.4,83.368,0.46677316]
[1771340281114,7.41416678,83.41,83.368,0.46677316]
[1771340281320,11.99055144,83.399,83.368,0.46677316]
[1771340281497,7.41416678,83.38,83.355,11.99688081]
[1771340281701,7.41416678,83.38,83.316,48.00976321]
[1771340281702,7.41416678,83.38,83.344,11.99846419]
[1771340282004,7.41416678,83.37,83.343,0.46677316]
[1771340282197,7.41416678,83.36,83.336,0.46677316]
[1771340283725,11.99371529,83.377,83.336,12.46630726]
[1771340284022,7.41416678,83.37,83.337,0.46677316]
[1771340284197,7.41416678,83.36,83.337,0.46677316]
[1771340285220,7.41416678,83.36,83.341,0.46677316]
[1771340285533,7.41416678,83.36,83.342,11.99875212]
[1771340285911,7.41416678,83.37,83.342,11.99875212]
[1771340286724,7.41416678,83.36,83.342,11.99875212]
[1771340287420,7.41416678,83.36,83.342,12.46552528]
[1771340287624,0.49368344,83.41,83.351,0.46677316]
[1771340287951,7.41416678,83.41,83.371,0.46677316]
[1771340288110,7.41416678,83.41,83.381,0.46677316]
[1771340288527,7.41416678,83.4,83.37,0.46677316]
[1771340288710,7.41416678,83.4,83.372,0.46677316]
[1771340289509,7.41416678,83.4,83.374,0.46677316]
[1771340290509,7.41416678,83.41,83.374,0.46677316]
[1771340290718,7.41416678,83.42,83.381,0.46677316]
[1771340291024,7.41416678,83.41,83.381,0.46677316]
[1771340291630,7.90785022,83.41,83.382,11.99299609]
[1771340291838,0.49368344,83.389,83.332,0.46677316]
[1771340292132,7.41416678,83.37,83.333,0.46677316]
[1771340292514,0.49368344,83.376,83.333,0.46677316]
[1771340292515,7.41416678,83.36,83.333,0.46677316]
[1771340292714,7.41416678,83.37,83.333,0.46677316]
[1771340293425,7.41416678,83.37,83.341,0.46677316]
[1771340293627,7.41416678,83.38,83.341,0.46677316]
[1771340294210,7.41416678,83.37,83.343,0.46677316]
[1771340295115,7.41416678,83.38,83.343,0.46677316]
[1771340296132,7.41416678,83.38,83.351,0.46301004]
[1771340297011,7.41416678,83.4,83.36,7.41416678]
[1771340297336,7.41416678,83.41,83.371,0.46301004]
[1771340297519,7.41416678,83.4,83.371,0.46301004]
[1771340297719,7.41416678,83.41,83.371,0.46301004]
[1771340298335,7.41416678,83.41,83.372,41.98052103]
[1771340298531,7.41416678,83.41,83.373,0.46301004]
[1771340298928,7.41416678,83.4,83.373,0.46301004]
[1771340299117,7.41416678,83.41,83.381,0.46301004]
[1771340299328,0.47228866,83.43,83.391,0.46301004]
[1771340299329,0.47228866,83.429,83.391,0.46301004]
[1771340299626,0.47228866,83.429,83.372,41.98052103]
[1771340299627,7.41416678,83.41,83.383,0.46301004]
[1771340300449,7.41416678,83.4,83.355,0.46301004]
[1771340300741,0.47228866,83.41,83.354,41.98958657]
[1771340300742,7.88645544,83.41,83.372,0.46301004]
[1771340301041,7.41416678,83.4,83.372,0.46301004]
[1771340301337,0.47228866,83.409,83.372,0.46301004]
[1771340301722,7.41416678,83.41,83.372,0.46301004]
[1771340302028,7.41416678,83.39,83.361,0.46301004]
[1771340302441,0.47228866,83.403,83.361,0.46301004]
[1771340302627,11.9887001,83.412,83.363,0.46301004]
[1771340302939,7.41416678,83.4,83.363,0.46301004]
[1771340303245,7.41416678,83.4,83.365,0.46301004]
[1771340303736,7.41416678,83.41,83.371,0.46301004]
[1771340304237,13.22,83.424,83.381,0.46301004]
[1771340304440,7.41416678,83.42,83.381,0.46301004]
[1771340304621,7.41416678,83.42,83.383,0.46301004]
[1771340304823,13.22,83.424,83.391,0.46301004]
[1771340305028,7.41416678,83.44,83.401,0.46301004]
[1771340305546,7.41416678,83.43,83.401,0.46301004]
[1771340306440,0.47228866,83.419,83.342,47.99482666]
[1771340306641,41.94178479,83.449,83.333,47.99962638]
[1771340306642,7.41416678,83.4,83.361,0.46301004]
[1771340307024,7.41416678,83.4,83.371,0.46301004]
[1771340307222,7.41416678,83.41,83.371,0.46301004]
[1771340307439,0.47228866,83.419,83.38,7.41416678]
[1771340307742,7.41416678,83.42,83.382,0.46301004]
[1771340307963,7.41416678,83.42,83.382,21.34301004]
[1771340308255,7.41416678,83.41,83.382,0.46301004]
[1771340308637,7.41416678,83.41,83.383,11.99285226]
[1771340308934,7.41416678,83.4,83.371,11.9945649]
[1771340310052,7.41416678,83.4,83.363,0.46301004]
[1771340310756,7.41416678,83.38,83.356,11.99661802]
[1771340311547,7.41416678,83.38,83.357,0.46301004]
[1771340311740,0.47228866,83.402,83.361,0.46301004]
[1771340311942,7.41416678,83.42,83.381,0.46301004]
[1771340312132,7.41416678,83.43,83.391,0.46301004]
[1771340312329,47.90594772,83.497,83.41,7.41416678]
[1771340312330,11.98318416,83.451,83.41,7.41416678]
[1771340312636,7.41416678,83.44,83.411,0.46301004]
[1771340312835,11.98256616,83.455,83.411,0.46301004]
[1771340313165,13.22,83.46,83.4,20.86]
[1771340313166,20.63416678,83.46,83.43,7.87717682]
[1771340313352,7.41416678,83.45,83.43,0.46301004]
[1771340313543,7.41416678,83.45,83.416,0.46301004]
[1771340313739,7.41416678,83.45,83.42,7.41416678]
[1771340313944,20.63416678,83.46,83.421,0.46301004]
[1771340314255,7.41416678,83.45,83.422,11.98724557]
[1771340314560,7.41416678,83.44,83.414,11.98833607]
[1771340314750,7.41416678,83.43,83.401,12.45327394]
[1771340314933,7.41416678,83.43,83.401,42.4289337]
[1771340315133,0.47228866,83.437,83.393,0.46301004]
[1771340315347,0.47228866,83.449,83.401,0.46301004]
[1771340315541,7.41416678,83.44,83.401,0.46301004]
[1771340315747,7.41416678,83.43,83.401,0.46301004]
[1771340316144,7.41416678,83.43,83.402,11.99012014]
[1771340316343,7.41416678,83.43,83.402,12.45313018]
[1771340316541,7.41416678,83.43,83.402,42.42843053]
[1771340316737,7.41416678,83.43,83.402,41.96542049]
[1771340317056,7.41416678,83.43,83.403,0.46301004]
[1771340318258,7.41416678,83.43,83.404,11.98983262]
[1771340319171,7.41416678,83.44,83.405,0.46301004]
[1771340319341,7.41416678,83.44,83.404,41.96441417]
[1771340319342,7.88645544,83.46,83.421,0.46301004]
[1771340319546,7.41416678,83.45,83.421,0.46301004]
[1771340319872,7.41416678,83.45,83.421,21.01334625]
[1771340320357,11.98336708,83.449,83.422,11.98724557]
[1771340320562,7.41416678,83.44,83.422,11.98724557]
[1771340320762,7.41416678,83.43,83.411,11.98882641]
[1771340320941,0.47228866,83.439,83.411,11.98882641]
[1771340321141,0.47228866,83.439,83.373,47.97679337]
[1771340321142,7.41416678,83.42,83.338,47.99698021]
[1771340321338,7.41416678,83.42,83.38,7.41416678]
[1771340321541,7.41416678,83.42,83.39,7.41416678]
[1771340321738,0.47228866,83.429,83.391,0.46301004]
[1771340321937,7.41416678,83.43,83.401,0.46301004]
[1771340322352,7.41416678,83.43,83.402,41.96542049]
[1771340322563,7.41416678,83.43,83.403,0.46301004]
[1771340322869,7.41416678,83.44,83.403,0.46301004]
[1771340323168,0.47228866,83.443,83.403,0.46301004]
[1771340323361,7.41416678,83.44,83.403,0.46301004]
[1771340323564,7.41416678,83.44,83.402,41.96542049]
[1771340323565,7.41416678,83.43,83.402,41.96542049]
[1771340323750,19.39742077,83.45,83.411,0.46301004]
[1771340323948,0.47228866,83.449,83.411,0.46301004]
[1771340324361,11.98351068,83.448,83.412,11.98868268]
[1771340324567,11.98351068,83.448,83.413,0.4550344]
[1771340324967,0.47228866,83.449,83.413,0.4550344]
[1771340325165,0.49971396,83.439,83.412,11.98868268]
[1771340325366,7.91388074,83.45,83.413,0.4550344]
[1771340326270,7.41416678,83.46,83.421,0.4550344]
[1771340326472,7.41416678,83.46,83.431,0.4550344]
[1771340326768,19.39595446,83.46,83.431,0.4550344]
[1771340326975,7.41416678,83.45,83.422,11.98724557]
[1771340327171,0.49971396,83.449,83.422,11.98724557]
[1771340327365,7.41416678,83.44,83.411,11.98873353]
[1771340327557,0.49971396,83.439,83.411,11.98873353]
[1771340327760,0.49971396,83.429,83.39,29.97953133]
[1771340327956,0.49971396,83.429,83.36,4.61729252]
[1771340327957,0.49971396,83.409,83.373,0.4550344]
[1771340328156,7.41416678,83.4,83.373,0.4550344]
[1771340328673,11.98932839,83.408,83.374,11.99414685]
[1771340328884,0.49971396,83.389,83.348,0.4550344]
[1771340329058,0.49971396,83.389,83.34,54.02]
[1771340329059,7.41416678,83.37,83.341,0.4550344]
[1771340329371,7.41416678,83.36,83.331,12.000336]
[1771340329559,7.41416678,83.35,83.317,0.4550344]
[1771340329752,7.41416678,83.36,83.332,0.4550344]
[1771340330169,4.61729252,83.379,83.332,0.4550344]
[1771340330370,0.49971396,83.379,83.332,0.4550344]
[1771340330562,0.49971396,83.379,83.334,0.4550344]
[1771340330563,19.40896456,83.37,83.334,0.4550344]
[1771340330764,7.41416678,83.36,83.334,0.4550344]
[1771340330971,7.41416678,83.36,83.331,12.000336]
[1771340331572,7.41416678,83.38,83.35,7.41416678]
[1771340331780,7.41416678,83.39,83.36,7.41416678]
[1771340332267,7.41416678,83.39,83.351,0.4550344]
[1771340332659,0.49291425,83.379,83.352,11.9973126]
[1771340332860,7.41416678,83.38,83.352,11.9973126]
[1771340333169,0.49291425,83.403,83.36,7.41416678]
[1771340333372,19.89750122,83.4,83.361,0.47137566]
[1771340333670,0.49291425,83.419,83.381,0.47137566]
[1771340334056,0.49291425,83.419,83.39,7.41416678]
[1771340334455,0.49291425,83.429,83.4,7.41416678]
[1771340334759,0.49291425,83.429,83.401,11.9902639]
[1771340334959,11.98638346,83.428,83.4,7.41416678]
[1771340335167,0.49291425,83.439,83.4,7.41416678]
[1771340335356,7.90708103,83.44,83.4,7.41416678]
[1771340335557,13.22,83.443,83.411,0.47137566]
[1771340335981,7.41416678,83.45,83.421,0.47137566]
[1771340336278,0.49291425,83.464,83.421,0.47137566]
[1771340336279,11.98193124,83.459,83.421,0.47137566]
[1771340336460,7.41416678,83.45,83.421,0.47137566]
[1771340336662,7.41416678,83.45,83.422,11.98724557]
[1771340337381,11.98336708,83.449,83.41,7.88554244]
[1771340337577,7.41416678,83.43,83.411,11.98882641]
[1771340338363,0.49291425,83.439,83.411,11.98882641]
[1771340338669,0.49291425,83.439,83.401,0.47137566]
[1771340339280,0.49291425,83.439,83.4,49.38059363]
[1771340339281,7.90708103,83.45,83.42,7.41416678]
[1771340339580,7.41416678,83.44,83.411,0.47137566]
[1771340340083,0.49291425,83.439,83.401,0.47137566]
[1771340340381,7.40332349,83.42,83.391,0.47137566]
[1771340340588,0.49291425,83.419,83.387,11.99214875]
[1771340340777,0.49291425,83.419,83.382,0.47137566]
[1771340341364,0.49291425,83.418,83.382,0.47137566]
[1771340341778,0.49291425,83.409,83.373,11.99429071]
[1771340341982,7.40332349,83.4,83.373,11.99429071]
[1771340342195,0.49291425,83.399,83.363,11.99572952]
[1771340342363,7.40332349,83.39,83.364,0.47137566]
[1771340342690,7.40332349,83.41,83.371,0.47137566]
[1771340342984,7.40332349,83.4,83.373,0.47137566]
[1771340343358,0.49291425,83.399,83.37,7.40332349]
[1771340343587,11.98911388,83.409,83.35,7.40332349]
[1771340343593,0.49291425,83.389,83.35,7.40332349]
[1771340343878,0.49291425,83.359,83.32,7.40332349]
[1771340344083,0.49291425,83.359,83.331,12.000336]
[1771340344259,7.89623774,83.37,83.331,0.47137566]
[1771340344464,293.73329013,83.409,83.33,12.10042171]
[1771340344465,0.49291425,83.38,83.341,0.47137566]
[1771340344681,13.22,83.381,83.331,0.47137566]
[1771340344994,7.40332349,83.37,83.34,7.40332349]
[1771340345171,7.40332349,83.38,83.341,0.47137566]
[1771340345365,7.40332349,83.38,83.332,42.000672]
[1771340345366,7.40332349,83.39,83.351,0.47137566]
[1771340345575,11.99198935,83.389,83.351,0.47137566]
[1771340345776,13.22,83.399,83.361,0.47137566]
[1771340345975,7.40332349,83.4,83.371,0.47137566]
[1771340346293,7.40332349,83.38,83.35,7.40332349]
[1771340346483,7.40332349,83.36,83.339,0.47137566]
[1771340346695,7.40332349,83.36,83.332,12.000192]
[1771340346908,7.40332349,83.36,83.334,11.999904]
[1771340347196,7.40332349,83.36,83.335,0.47137566]
[1771340347503,7.40332349,83.35,83.33,0.1]
[1771340348015,13.22,83.368,83.332,0.47137566]
[1771340348293,7.40332349,83.37,83.332,0.47137566]
[1771340348672,0.31575718,83.684,83.332,0.47137566]
[1771340349001,7.40332349,83.37,83.334,0.47137566]
[1771340349297,7.40332349,83.37,83.341,0.47137566]
[1771340351096,0.49291425,83.413,83.361,0.47137566]
[1771340351393,0.49291425,83.413,83.35,7.40332349]
[1771340351394,13.24,83.429,83.4,7.40332349]
[1771340351592,7.40332349,83.43,83.4,7.40332349]
[1771340352190,0.49291425,83.429,83.391,0.47137566]
[1771340352500,0.49291425,83.419,83.381,0.47137566]
[1771340352817,7.40332349,83.41,83.381,0.47137566]
[1771340353184,0.49291425,83.419,83.383,0.47137566]
[1771340353383,7.40332349,83.41,83.383,0.47137566]
[1771340353720,0.49291425,83.419,83.383,0.47137566]
[1771340353886,0.49291425,83.419,83.39,7.40332349]
[1771340354082,0.49291425,83.432,83.4,7.40332349]
[1771340354312,11.98480326,83.439,83.4,7.40332349]
[1771340354606,13.24,83.44,83.411,0.46515403]
[1771340354807,11.98336708,83.449,83.411,0.46515403]
[1771340354987,7.40332349,83.44,83.41,7.40332349]
[1771340355183,7.88633157,83.44,83.411,11.98882641]
[1771340355391,0.48300808,83.438,83.411,11.98882641]
[1771340356084,13.24,83.45,83.411,11.98882641]
[1771340356085,7.40332349,83.44,83.411,11.98882641]
[1771340356493,7.40332349,83.44,83.411,41.96089244]
[1771340356697,7.88633157,83.44,83.411,11.98882641]
[1771340356904,0.48300808,83.44,83.411,11.98882641]
[1771340357089,7.88633157,83.44,83.411,11.98882641]
[1771340357288,11.98480326,83.439,83.411,11.98882641]
[1771340357510,7.88633157,83.44,83.411,11.98882641]
[1771340358407,7.40332349,83.45,83.412,0.46515403]
[1771340358914,7.88633157,83.45,83.412,0.46515403]
[1771340359291,12.46637516,83.449,83.413,11.98853895]
[1771340359494,0.48300808,83.448,83.413,11.98853895]
[1771340359806,0.48300808,83.448,83.412,0.46515403]
[1771340359807,7.88633157,83.44,83.407,11.98932505]
[1771340359995,7.40332349,83.46,83.421,0.46515403]
[1771340360191,7.40332349,83.45,83.421,0.46515403]
[1771340360392,7.40332349,83.45,83.42,7.40332349]
[1771340360818,7.88633157,83.45,83.42,7.40332349]
[1771340360992,0.48300808,83.449,83.42,7.40332349]
[1771340361192,0.48300808,83.476,83.44,7.40332349]
[1771340361393,0.48300808,83.459,83.422,11.98724557]
[1771340361618,0.48300808,83.449,83.422,11.98724557]
[1771340361808,0.48300808,83.439,83.414,11.9883262]
[1771340363044,7.40332349,83.45,83.42,7.40332349]
[1771340363192,7.40332349,83.44,83.414,11.9883262]
[1771340363392,7.40332349,83.44,83.411,11.98882641]
[1771340363811,7.40332349,83.45,83.412,0.46515403]
[1771340364419,7.40332349,83.44,83.412,0.46515403]
[1771340364614,7.40332349,83.44,83.411,11.98882641]
[1771340365402,7.40332349,83.44,83.403,41.96491731]
[1771340365719,0.48300808,83.443,83.41,7.40332349]
[1771340365896,7.40332349,83.44,83.41,7.40332349]
[1771340366319,7.88633157,83.44,83.404,0.46515403]
[1771340366706,0.48300808,83.44,83.41,7.40332349]
[1771340366915,7.88633157,83.44,83.41,7.40332349]
[1771340367217,7.88633157,83.44,83.404,0.46515403]
[1771340367405,0.48300808,83.439,83.404,0.46515403]
[1771340367607,7.88633157,83.45,83.42,7.40332349]
[1771340367906,7.88633157,83.45,83.411,0.46515403]
[1771340367907,12.46637516,83.449,83.411,0.46515403]
[1771340368209,7.40332349,83.44,83.411,0.46515403]
[1771340368405,0.48300808,83.448,83.411,0.46515403]
[1771340368795,11.98336708,83.449,83.4,7.40332349]
[1771340368796,0.48300808,83.429,83.4,7.40332349]
[1771340369000,0.48300808,83.409,83.36,41.98656429]